{"text_format":"1","workbook":"xlsx","n_sheets":8,"sheets":["Menu","Colab","Cargos","Punição","Beneficio","Dash1","Instruções","Notas"],"not_rendered":{"charts":9,"images":10,"macros":1,"external_links":0,"defined_names":12,"comments":0,"pivot_tables":5},"unopened":[],"bounds":{"document_bytes":16777216,"sheet_cells":100000,"rows_first":2000,"rows_last":500,"rows_between":2000,"halvings":0,"cell_chars":16384,"cell_head_chars":4096},"cells_cut":0,"cells_raw":0,"read":"whole","date_system":"1900"}

{"sheet":"Menu","index":0,"n_rows":26,"n_cols":7,"rows_kept":26,"cut":false,"hidden":false,"merged":[[25,4,25,5],[25,6,25,14]]}
[]
[]
[]
[]
[]
[]
[]
[]
[]
[]
[]
[]
[]
[]
[]
[]
[]
[]
[]
[]
[]
[]
[]
[]
[]
[null,null,null,null,"Empresa:",null,"Empresa ABCDE"]

{"sheet":"Colab","index":1,"n_rows":63,"n_cols":22,"rows_kept":63,"cut":false,"hidden":false,"merged":[[9,2,9,3],[11,1,11,7]]}
[]
[]
[]
[]
[]
[]
[]
[]
[]
[null,"Empresa:",{"$f":"Menu!G26","v":"Empresa ABCDE"}]
[]
[null,"CADASTRO DE COLABORADORES\nInsira os dados dos seus colaboradores."]
[null,"Colaborador","Área","Cargo","Salário","Escolaridade","Telefone","Endereço","Data de Admissão","Data de Nascimento ",null,"Tempo de Empresa (Anos)","Faixa",null,null,null,null,"Idade","Faixa"]
[null,"José da Silva","Administrativo","Assistente Administrativo",1800,"Ensino Superior","9999-9999",null,"2018-01-05","1988-10-29",null,{"$f":"IFERROR(IF(I14=\"\",\"\",(TODAY()-I14)/365),\"\")","v":4.0246575342465754},{"$f":"IF(I14=\"\",\"\",IF(AND(L14>0,L14<=1),\"Menos de 1 ano\",IF(AND(L14>1,L14<=3),\"De 1 a 3 anos\",IF(AND(L14>3,L14<=5),\"De 3 a 5 anos\",\"Mais de 5 anos\"))))","v":"De 3 a 5 anos"},null,"Menos de 1 ano",{"$f":"COUNTIF($M$14:$M$63,O14)","v":0},null,{"$f":"IFERROR(IF(J14=\"\",\"\",(TODAY()-J14)/365),\"\")","v":33.230136986301368},{"$f":"IF(J14=\"\",\"\",IF(R14<=25,\"Até 25 anos\",IF(AND(R14>25,R14<=35),\"De 25 a 35 anos\",IF(AND(R14>35,R14<=45),\"De 35 a 45 anos\",\"Mais de 45 anos\"))))","v":"De 25 a 35 anos"},null,"Até 25 anos",{"$f":"COUNTIF($S$14:$S$63,U14)","v":1}]
[null,"João Alves","Produção","Auxiliar de PCP",1200,"Ensino Médio","8888-8888",null,"2010-05-10","2000-02-04",null,{"$f":"IFERROR(IF(I15=\"\",\"\",(TODAY()-I15)/365),\"\")","v":11.687671232876712},{"$f":"IF(I15=\"\",\"\",IF(AND(L15>0,L15<=1),\"Menos de 1 ano\",IF(AND(L15>1,L15<=3),\"De 1 a 3 anos\",IF(AND(L15>3,L15<=5),\"De 3 a 5 anos\",\"Mais de 5 anos\"))))","v":"Mais de 5 anos"},null,"De 1 a 3 anos",{"$f":"COUNTIF($M$14:$M$63,O15)","v":1},null,{"$f":"IFERROR(IF(J15=\"\",\"\",(TODAY()-J15)/365),\"\")","v":21.956164383561642},{"$f":"IF(J15=\"\",\"\",IF(R15<=25,\"Até 25 anos\",IF(AND(R15>25,R15<=35),\"De 25 a 35 anos\",IF(AND(R15>35,R15<=45),\"De 35 a 45 anos\",\"Mais de 45 anos\"))))","v":"Até 25 anos"},null,"De 25 a 35 anos",{"$f":"COUNTIF($S$14:$S$63,U15)","v":2}]
[null,"Paulo Vitor","Almoxarifado","Almoxarife",1500,"Ensino Médio","7777-7777",null,"2020-09-23","1996-12-10",null,1.3068493150684932,"De 1 a 3 anos",null,"De 3 a 5 anos",1,null,25.109589041095891,"De 25 a 35 anos",null,"De 35 a 45 anos",0]
[null,null,null,null,null,null,null,null,null,null,null,"","",null,"Mais de 5 anos",1,null,"","",null,"Mais de 45 anos",0]
[null,null,null,null,null,null,null,null,null,null,null,"","",null,null,null,null,"",""]
[null,null,null,null,null,null,null,null,null,null,null,"","",null,null,null,null,"",""]
[null,null,null,null,null,null,null,null,null,null,null,"","",null,null,null,null,"",""]
[null,null,null,null,null,null,null,null,null,null,null,"","",null,null,null,null,"",""]
[null,null,null,null,null,null,null,null,null,null,null,"","",null,null,null,null,"",""]
[null,null,null,null,null,null,null,null,null,null,null,"","",null,null,null,null,"",""]
[null,null,null,null,null,null,null,null,null,null,null,"","",null,null,null,null,"",""]
[null,null,null,null,null,null,null,null,null,null,null,"","",null,null,null,null,"",""]
[null,null,null,null,null,null,null,null,null,null,null,"","",null,null,null,null,"",""]
[null,null,null,null,null,null,null,null,null,null,null,"","",null,null,null,null,"",""]
[null,null,null,null,null,null,null,null,null,null,null,"","",null,null,null,null,"",""]
[null,null,null,null,null,null,null,null,null,null,null,"","",null,null,null,null,"",""]
[null,null,null,null,null,null,null,null,null,null,null,"","",null,null,null,null,"",""]
[null,null,null,null,null,null,null,null,null,null,null,"","",null,null,null,null,"",""]
[null,null,null,null,null,null,null,null,null,null,null,"","",null,null,null,null,"",""]
[null,null,null,null,null,null,null,null,null,null,null,"","",null,null,null,null,"",""]
[null,null,null,null,null,null,null,null,null,null,null,"","",null,null,null,null,"",""]
[null,null,null,null,null,null,null,null,null,null,null,"","",null,null,null,null,"",""]
[null,null,null,null,null,null,null,null,null,null,null,"","",null,null,null,null,"",""]
[null,null,null,null,null,null,null,null,null,null,null,"","",null,null,null,null,"",""]
[null,null,null,null,null,null,null,null,null,null,null,"","",null,null,null,null,"",""]
[null,null,null,null,null,null,null,null,null,null,null,"","",null,null,null,null,"",""]
[null,null,null,null,null,null,null,null,null,null,null,"","",null,null,null,null,"",""]
[null,null,null,null,null,null,null,null,null,null,null,"","",null,null,null,null,"",""]
[null,null,null,null,null,null,null,null,null,null,null,"","",null,null,null,null,"",""]
[null,null,null,null,null,null,null,null,null,null,null,"","",null,null,null,null,"",""]
[null,null,null,null,null,null,null,null,null,null,null,"","",null,null,null,null,"",""]
[null,null,null,null,null,null,null,null,null,null,null,"","",null,null,null,null,"",""]
[null,null,null,null,null,null,null,null,null,null,null,"","",null,null,null,null,"",""]
[null,null,null,null,null,null,null,null,null,null,null,"","",null,null,null,null,"",""]
[null,null,null,null,null,null,null,null,null,null,null,"","",null,null,null,null,"",""]
[null,null,null,null,null,null,null,null,null,null,null,"","",null,null,null,null,"",""]
[null,null,null,null,null,null,null,null,null,null,null,"","",null,null,null,null,"",""]
[null,null,null,null,null,null,null,null,null,null,null,"","",null,null,null,null,"",""]
[null,null,null,null,null,null,null,null,null,null,null,"","",null,null,null,null,"",""]
[null,null,null,null,null,null,null,null,null,null,null,"","",null,null,null,null,"",""]
[null,null,null,null,null,null,null,null,null,null,null,"","",null,null,null,null,"",""]
[null,null,null,null,null,null,null,null,null,null,null,"","",null,null,null,null,"",""]
[null,null,null,null,null,null,null,null,null,null,null,"","",null,null,null,null,"",""]
[null,null,null,null,null,null,null,null,null,null,null,"","",null,null,null,null,"",""]
[null,null,null,null,null,null,null,null,null,null,null,"","",null,null,null,null,"",""]
[null,null,null,null,null,null,null,null,null,null,null,"","",null,null,null,null,"",""]
[null,null,null,null,null,null,null,null,null,null,null,"","",null,null,null,null,"",""]
[null,null,null,null,null,null,null,null,null,null,null,"","",null,null,null,null,"",""]
[null,null,null,null,null,null,null,null,null,null,null,"","",null,null,null,null,"",""]
[null,null,null,null,null,null,null,null,null,null,null,"","",null,null,null,null,"",""]

{"sheet":"Cargos","index":2,"n_rows":33,"n_cols":8,"rows_kept":33,"cut":false,"hidden":false,"merged":[[11,1,11,2],[9,2,9,4]]}
[]
[]
[]
[]
[]
[]
[]
[]
[]
[null,"Empresa:",{"$f":"Menu!G26","v":"Empresa ABCDE"}]
[]
[null,"PLANO DE CARGOS E SALÁRIOS\nInsira os cargos e os salários utilizados na empresa."]
[null,"Cargo","Salários","Descritivo da Função ","Pré-requisitos Curriculares"]
[null,"Assistente Administrativo",1800,null,null,null,null,{"$f":"COUNTIF(Colab!D:D,Cargos!B14)","v":1}]
[null,"Auxiliar de PCP",1200,null,null,null,null,{"$f":"COUNTIF(Colab!D:D,Cargos!B15)","v":1}]
[null,"Almoxarife",1500,null,null,null,null,{"$f":"COUNTIF(Colab!D:D,Cargos!B16)","v":1}]
[null,"Auxiliar Administrativo",1200,null,null,null,null,{"$f":"COUNTIF(Colab!D:D,Cargos!B17)","v":0}]
[null,"Gerente Geral",5000,null,null,null,null,{"$f":"COUNTIF(Colab!D:D,Cargos!B18)","v":0}]
[null,"Coodenador da Qualidade",2500,null,null,null,null,{"$f":"COUNTIF(Colab!D:D,Cargos!B19)","v":0}]
[null,null,null,null,null,null,null,{"$f":"COUNTIF(Colab!D:D,Cargos!B20)","v":0}]
[null,null,null,null,null,null,null,{"$f":"COUNTIF(Colab!D:D,Cargos!B21)","v":0}]
[null,null,null,null,null,null,null,{"$f":"COUNTIF(Colab!D:D,Cargos!B22)","v":0}]
[null,null,null,null,null,null,null,{"$f":"COUNTIF(Colab!D:D,Cargos!B23)","v":0}]
[null,null,null,null,null,null,null,{"$f":"COUNTIF(Colab!D:D,Cargos!B24)","v":0}]
[null,null,null,null,null,null,null,{"$f":"COUNTIF(Colab!D:D,Cargos!B25)","v":0}]
[null,null,null,null,null,null,null,{"$f":"COUNTIF(Colab!D:D,Cargos!B26)","v":0}]
[null,null,null,null,null,null,null,{"$f":"COUNTIF(Colab!D:D,Cargos!B27)","v":0}]
[null,null,null,null,null,null,null,{"$f":"COUNTIF(Colab!D:D,Cargos!B28)","v":0}]
[null,null,null,null,null,null,null,{"$f":"COUNTIF(Colab!D:D,Cargos!B29)","v":0}]
[null,null,null,null,null,null,null,{"$f":"COUNTIF(Colab!D:D,Cargos!B30)","v":0}]
[null,null,null,null,null,null,null,{"$f":"COUNTIF(Colab!D:D,Cargos!B31)","v":0}]
[null,null,null,null,null,null,null,{"$f":"COUNTIF(Colab!D:D,Cargos!B32)","v":0}]
[null,null,null,null,null,null,null,{"$f":"COUNTIF(Colab!D:D,Cargos!B33)","v":0}]

{"sheet":"Punição","index":3,"n_rows":64,"n_cols":14,"rows_kept":64,"cut":false,"hidden":false,"merged":[[11,1,11,12],[9,2,9,6]]}
[]
[]
[]
[]
[]
[]
[]
[]
[]
[null,"Empresa:",{"$f":"Menu!G26","v":"Empresa ABCDE"}]
[]
[null,"CONTROLE DE PUNIÇÕES\nInsira a data da punição, quando houver."]
[null,"Colaborador","Data Advertência 1","Data Advertência 2","Data Advertência 3","Data Suspensão 1","Data Suspensão 2","Data Suspensão 3","Descreva os Motivos","Grau das Adverências","Data Demissão","Total Advert.","Total Suspensão","Demissão"]
[null,{"$f":"Colab!B14","v":"José da Silva"},"2020-01-05","2020-01-10","2020-01-15","2020-01-20",null,null,null,null,null,{"$f":"COUNTA(C14:F14)","v":4},{"$f":"COUNTA(F14:H14)","v":1},{"$f":"COUNTA(K14)","v":0}]
[null,{"$f":"Colab!B15","v":"João Alves"},"2021-01-05","2020-01-10",null,"2021-02-01","2021-02-05",null,null,null,null,{"$f":"COUNTA(C15:E15)","v":2},2,{"$f":"COUNTA(K15)","v":0}]
[null,{"$f":"Colab!B16","v":"Paulo Vitor"},"2021-02-01","2021-02-15","2021-02-20",null,null,null,null,null,null,3,0,0]
[null,{"$f":"Colab!B17","v":0},null,null,null,null,null,null,null,null,null,0,0,0]
[null,{"$f":"Colab!B18","v":0},null,null,null,null,null,null,null,null,null,0,0,0]
[null,{"$f":"Colab!B19","v":0},null,null,null,null,null,null,null,null,null,0,0,0]
[null,{"$f":"Colab!B20","v":0},null,null,null,null,null,null,null,null,null,0,0,0]
[null,{"$f":"Colab!B21","v":0},null,null,null,null,null,null,null,null,null,0,0,0]
[null,{"$f":"Colab!B22","v":0},null,null,null,null,null,null,null,null,null,0,0,0]
[null,{"$f":"Colab!B23","v":0},null,null,null,null,null,null,null,null,null,0,0,0]
[null,{"$f":"Colab!B24","v":0},null,null,null,null,null,null,null,null,null,0,0,0]
[null,{"$f":"Colab!B25","v":0},null,null,null,null,null,null,null,null,null,0,0,0]
[null,{"$f":"Colab!B26","v":0},null,null,null,null,null,null,null,null,null,0,0,0]
[null,{"$f":"Colab!B27","v":0},null,null,null,null,null,null,null,null,null,0,0,0]
[null,{"$f":"Colab!B28","v":0},null,null,null,null,null,null,null,null,null,0,0,0]
[null,{"$f":"Colab!B29","v":0},null,null,null,null,null,null,null,null,null,0,0,0]
[null,{"$f":"Colab!B30","v":0},null,null,null,null,null,null,null,null,null,0,0,0]
[null,{"$f":"Colab!B31","v":0},null,null,null,null,null,null,null,null,null,0,0,0]
[null,{"$f":"Colab!B32","v":0},null,null,null,null,null,null,null,null,null,0,0,0]
[null,{"$f":"Colab!B33","v":0},null,null,null,null,null,null,null,null,null,0,0,0]
[null,{"$f":"Colab!B34","v":0},null,null,null,null,null,null,null,null,null,0,0,0]
[null,{"$f":"Colab!B35","v":0},null,null,null,null,null,null,null,null,null,0,0,0]
[null,{"$f":"Colab!B36","v":0},null,null,null,null,null,null,null,null,null,0,0,0]
[null,{"$f":"Colab!B37","v":0},null,null,null,null,null,null,null,null,null,0,0,0]
[null,{"$f":"Colab!B38","v":0},null,null,null,null,null,null,null,null,null,0,0,0]
[null,{"$f":"Colab!B39","v":0},null,null,null,null,null,null,null,null,null,0,0,0]
[null,{"$f":"Colab!B40","v":0},null,null,null,null,null,null,null,null,null,0,0,0]
[null,{"$f":"Colab!B41","v":0},null,null,null,null,null,null,null,null,null,0,0,0]
[null,{"$f":"Colab!B42","v":0},null,null,null,null,null,null,null,null,null,0,0,0]
[null,{"$f":"Colab!B43","v":0},null,null,null,null,null,null,null,null,null,0,0,0]
[null,{"$f":"Colab!B44","v":0},null,null,null,null,null,null,null,null,null,0,0,0]
[null,{"$f":"Colab!B45","v":0},null,null,null,null,null,null,null,null,null,0,0,0]
[null,{"$f":"Colab!B46","v":0},null,null,null,null,null,null,null,null,null,{"$f":"COUNTA(C46:E46)","v":0},{"$f":"COUNTA(F46:H46)","v":0},0]
[null,{"$f":"Colab!B47","v":0},null,null,null,null,null,null,null,null,null,0,0,0]
[null,{"$f":"Colab!B48","v":0},null,null,null,null,null,null,null,null,null,0,0,0]
[null,{"$f":"Colab!B49","v":0},null,null,null,null,null,null,null,null,null,0,0,0]
[null,{"$f":"Colab!B50","v":0},null,null,null,null,null,null,null,null,null,0,0,0]
[null,{"$f":"Colab!B51","v":0},null,null,null,null,null,null,null,null,null,0,0,0]
[null,{"$f":"Colab!B52","v":0},null,null,null,null,null,null,null,null,null,0,0,0]
[null,{"$f":"Colab!B53","v":0},null,null,null,null,null,null,null,null,null,0,0,0]
[null,{"$f":"Colab!B54","v":0},null,null,null,null,null,null,null,null,null,0,0,0]
[null,{"$f":"Colab!B55","v":0},null,null,null,null,null,null,null,null,null,0,0,0]
[null,{"$f":"Colab!B56","v":0},null,null,null,null,null,null,null,null,null,0,0,0]
[null,{"$f":"Colab!B57","v":0},null,null,null,null,null,null,null,null,null,0,0,0]
[null,{"$f":"Colab!B58","v":0},null,null,null,null,null,null,null,null,null,0,0,0]
[null,{"$f":"Colab!B59","v":0},null,null,null,null,null,null,null,null,null,0,0,0]
[null,{"$f":"Colab!B60","v":0},null,null,null,null,null,null,null,null,null,0,0,0]
[null,{"$f":"Colab!B61","v":0},null,null,null,null,null,null,null,null,null,0,0,0]
[null,{"$f":"Colab!B62","v":0},null,null,null,null,null,null,null,null,null,0,0,0]
[null,{"$f":"Colab!B63","v":0},null,null,null,null,null,null,null,null,null,0,0,0]
[null,null,null,null,null,null,null,null,null,null,null,{"$f":"SUM(L14:L63)","v":9},{"$f":"SUM(M14:M63)","v":3},0]

{"sheet":"Beneficio","index":4,"n_rows":64,"n_cols":11,"rows_kept":64,"cut":false,"hidden":false,"merged":[[9,2,9,6],[11,1,11,7]]}
[]
[]
[]
[]
[]
[]
[]
[]
[]
[null,"Empresa:",{"$f":"Menu!G26","v":"Empresa ABCDE"}]
[]
[null,"CONTROLE DE BENEFÍCIOS\nInsira o valor dos benefícios, quando houver."]
[null,"Colaborador","Vale Transporte","Vale Refeição","Benefício 3","Benefício 4","Benefício 5","Total de Benefícios",null,null,"Média"]
[null,{"$f":"Colab!B14","v":"José da Silva"},150,100,null,null,null,{"$f":"SUM(C14:G14)","v":250},null,null,{"$f":"IFERROR(AVERAGEIF(C14:H14,\">0\"),\"\")","v":166.66666666666666}]
[null,{"$f":"Colab!B15","v":"João Alves"},150,100,null,null,null,{"$f":"SUM(C15:G15)","v":250},null,null,166.66666666666666]
[null,{"$f":"Colab!B16","v":"Paulo Vitor"},100,100,null,null,null,200,null,null,133.33333333333334]
[null,{"$f":"Colab!B17","v":0},null,null,null,null,null,0,null,null,""]
[null,{"$f":"Colab!B18","v":0},null,null,null,null,null,0,null,null,""]
[null,{"$f":"Colab!B19","v":0},null,null,null,null,null,0,null,null,""]
[null,{"$f":"Colab!B20","v":0},null,null,null,null,null,0,null,null,""]
[null,{"$f":"Colab!B21","v":0},null,null,null,null,null,0,null,null,""]
[null,{"$f":"Colab!B22","v":0},null,null,null,null,null,0,null,null,""]
[null,{"$f":"Colab!B23","v":0},null,null,null,null,null,0,null,null,""]
[null,{"$f":"Colab!B24","v":0},null,null,null,null,null,0,null,null,""]
[null,{"$f":"Colab!B25","v":0},null,null,null,null,null,0,null,null,""]
[null,{"$f":"Colab!B26","v":0},null,null,null,null,null,0,null,null,""]
[null,{"$f":"Colab!B27","v":0},null,null,null,null,null,0,null,null,""]
[null,{"$f":"Colab!B28","v":0},null,null,null,null,null,0,null,null,""]
[null,{"$f":"Colab!B29","v":0},null,null,null,null,null,0,null,null,""]
[null,{"$f":"Colab!B30","v":0},null,null,null,null,null,0,null,null,""]
[null,{"$f":"Colab!B31","v":0},null,null,null,null,null,0,null,null,""]
[null,{"$f":"Colab!B32","v":0},null,null,null,null,null,0,null,null,""]
[null,{"$f":"Colab!B33","v":0},null,null,null,null,null,0,null,null,""]
[null,{"$f":"Colab!B34","v":0},null,null,null,null,null,0,null,null,""]
[null,{"$f":"Colab!B35","v":0},null,null,null,null,null,0,null,null,""]
[null,{"$f":"Colab!B36","v":0},null,null,null,null,null,0,null,null,""]
[null,{"$f":"Colab!B37","v":0},null,null,null,null,null,0,null,null,""]
[null,{"$f":"Colab!B38","v":0},null,null,null,null,null,0,null,null,""]
[null,{"$f":"Colab!B39","v":0},null,null,null,null,null,0,null,null,""]
[null,{"$f":"Colab!B40","v":0},null,null,null,null,null,0,null,null,""]
[null,{"$f":"Colab!B41","v":0},null,null,null,null,null,0,null,null,""]
[null,{"$f":"Colab!B42","v":0},null,null,null,null,null,0,null,null,""]
[null,{"$f":"Colab!B43","v":0},null,null,null,null,null,0,null,null,""]
[null,{"$f":"Colab!B44","v":0},null,null,null,null,null,0,null,null,""]
[null,{"$f":"Colab!B45","v":0},null,null,null,null,null,0,null,null,""]
[null,{"$f":"Colab!B46","v":0},null,null,null,null,null,0,null,null,{"$f":"IFERROR(AVERAGEIF(C46:H46,\">0\"),\"\")","v":""}]
[null,{"$f":"Colab!B47","v":0},null,null,null,null,null,0,null,null,""]
[null,{"$f":"Colab!B48","v":0},null,null,null,null,null,0,null,null,""]
[null,{"$f":"Colab!B49","v":0},null,null,null,null,null,0,null,null,""]
[null,{"$f":"Colab!B50","v":0},null,null,null,null,null,0,null,null,""]
[null,{"$f":"Colab!B51","v":0},null,null,null,null,null,0,null,null,""]
[null,{"$f":"Colab!B52","v":0},null,null,null,null,null,0,null,null,""]
[null,{"$f":"Colab!B53","v":0},null,null,null,null,null,0,null,null,""]
[null,{"$f":"Colab!B54","v":0},null,null,null,null,null,0,null,null,""]
[null,{"$f":"Colab!B55","v":0},null,null,null,null,null,0,null,null,""]
[null,{"$f":"Colab!B56","v":0},null,null,null,null,null,0,null,null,""]
[null,{"$f":"Colab!B57","v":0},null,null,null,null,null,0,null,null,""]
[null,{"$f":"Colab!B58","v":0},null,null,null,null,null,0,null,null,""]
[null,{"$f":"Colab!B59","v":0},null,null,null,null,null,0,null,null,""]
[null,{"$f":"Colab!B60","v":0},null,null,null,null,null,0,null,null,""]
[null,{"$f":"Colab!B61","v":0},null,null,null,null,null,0,null,null,""]
[null,{"$f":"Colab!B62","v":0},null,null,null,null,null,0,null,null,""]
[null,{"$f":"Colab!B63","v":0},null,null,null,null,null,0,null,null,""]
[null,null,{"$f":"SUM(C14:C63)","v":400},{"$f":"SUM(D14:D63)","v":300},0,0,0]

{"sheet":"Dash1","index":5,"n_rows":96,"n_cols":16,"rows_kept":96,"cut":false,"hidden":false,"merged":[[14,17,17,20],[10,1,10,2],[10,3,10,20]]}
[]
[]
[]
[]
[]
[]
[]
[]
[]
[]
[null,"Empresa:",null,{"$f":"Menu!G26","v":"Empresa ABCDE"}]
[]
[]
[]
[]
[]
[]
[]
[]
[]
[]
[]
[]
[]
[]
[]
[]
[]
[]
[]
[]
[]
[]
[]
[]
[]
[]
[]
[]
[]
[]
[]
[]
[]
[]
[]
[]
[]
[]
[]
[]
[]
[]
[]
[]
[]
[]
[]
[]
[]
[]
[]
[]
[]
[]
[]
[]
[]
[]
[]
[]
[]
[]
[]
[]
[]
[]
[]
[]
[]
[]
[]
[]
[]
[]
[]
[]
[]
[]
[]
[null,"Total Advert.","(Vários itens)",null,"Total Suspensão","(Vários itens)",null,"Rótulos de Linha","Soma de Salário",null,"Rótulos de Linha","Soma de Salário",null,null,"Rótulos de Linha","Soma de Total de Benefícios"]
[null,null,null,null,null,null,null,"José da Silva",1800,null,"(vazio)",0,null,null,"José da Silva",250]
[null,"Rótulos de Linha","Soma de Total Advert.",null,"Rótulos de Linha","Soma de Total Suspensão",null,"Paulo Vitor",1500,null,"João Alves",1200,null,null,"João Alves",250]
[null,"Paulo Vitor",3,null,"João Alves",2,null,"João Alves",1200,null,"Paulo Vitor",1500,null,null,"Paulo Vitor",200]
[null,"João Alves",2,null,"José da Silva",1,null,"(vazio)",0,null,"José da Silva",1800,null,null,0,0]
[null,"Total Geral",5,null,"Total Geral",3,null,"Total Geral",4500,null,"Total Geral",4500,null,null,"Total Geral",700]

{"sheet":"Instruções","index":6,"n_rows":0,"n_cols":0,"rows_kept":0,"cut":false,"hidden":false,"merged":[]}

{"sheet":"Notas","index":7,"n_rows":5,"n_cols":1,"rows_kept":5,"cut":false,"hidden":false,"merged":[]}
["Analfabeto"]
["Ensino Fundamental"]
["Ensino Médio"]
["Ensino Superior"]
["Pós Graduado"]